Workbook

Sheet МАХ. (2)
A1: Двенадцатидневное меню
A2: "Услуги по организации горячего питания для учащихся на 2022 г. (1-4 классы)
A3: (сезон-осень)
A4: № | B4: № рецептуры | C4: Наименование продукта | D4: Выход на 1 порц., гр. | E4: Цена | F4: Цена
A5: Первая неделя 1 - ый день (понедельник)
A6: 2 | C6: Овощи свежие в ассортименте (огурцы,помидоры ) | D6: 60
A7: 2 | B7: 314/348 | C7: Котлеты рубленные из птицы с соусом | D7: 60/30 | F7: 11.00
A8: 3 | B8: 181 | C8: Каша гречневая рассыпчатая с маслом сливочным | D8: 150/5 | F8: 40.00
A9: 4 | B9: 430 | C9: Чай черный с сахаром | D9: 185/7 | F9: 11.00
A10: 5 | C10: Хлеб пшеничный высшего сорта | D10: 30 | F10: 3.00
A11: 6 | C11: Хлеб сельский | D11: 20 | F11: 1.50
C12: Итого | E12: 44.72 | F12: =SUM(F7:F11) -> 66.50
A13: 2 -ой день (вторник)
A14: 1 | C14: Фрукты(в ассортименте) | D14: 120 | F14: 10.00
A15: 2 | B15: 254/348 | C15: Сосиски отварные (соус ) | D15: 60/30 | F15: 28.00
A16: 3 | B16: 202 | C16: Макаронные изделия отварные с маслом сливочным | D16: 150/5
A17: 4 | B17: 402 | C17: Компот из сухофруктов с витамином С | D17: 200 | F17: 9.00
A18: 5 | C18: Хлеб пшеничный высшего сорта | D18: 30 | F18: 9.00
A19: 6 | C19: Хлеб сельский | D19: 20 | F19: 1.50
C20: Итого | E20: 44.72 | F20: =SUM(F14:F19) -> 57.50
A21: 3- ий день (среда)
A22: 1 | C22: Овощи свежие в ассортименте (огурцы,помидоры ) | D22: 60 | F22: 23.00
A23: 2 | B23: 299 | C23: Запеканка картофельная с курицей | D23: 170 | F23: 15.00
A24: 3 | B24: 402 | C24: Компот из сухофруктов с витамином С | D24: 200 | F24: 8.00
A25: 4 | C25: Хлеб пшеничный высшего сорта | D25: 30 | F25: 1.50
A26: 5 | C26: Хлеб сельский | D26: 20 | F26: 1.00
C27: Итого | E27: =E20 -> 44.72 | F27: =SUM(F22:F26) -> 48.50
A28: 4 - ый день (четверг)
A29: 1 | C29: Фрукты (в ассортименте) | D29: 120 | F29: 6.00
A30: 2 | B30: 391 | C30: Пельмени мясные отварные с маслом сливочным | D30: 170/5 | F30: 35.00
A31: 3 | B31: 402 | C31: Компот из сухофруктов с витамином С | D31: 200
A32: 4 | C32: Хлеб пшеничный высшего сорта | D32: 30 | F32: 8.00
A33: 5 | C33: Хлеб сельский | D33: 20 | F33: 1.50
C34: Итого | E34: =E27 -> 44.72 | F34: =SUM(F29:F33) -> 50.50
A35: 5 - ый день (пятница)
A36: 2 | B36: 54 | C36: Салат из вареной свеклы с яблоками | D36: 60 | F36: 6.00
A37: 3 | B37: 311 | C37: Плов из птицы (грудки куриные) | D37: 40/150 | F37: 40.00
A38: 4 | B38: 433 | C38: Какао с молоком | D38: 200 | F38: 3.00
A39: 5 | C39: Хлеб пшеничный высшего сорта | D39: 30 | F39: 1.50
A40: 6 | C40: Хлеб сельский | D40: 40 | F40: 1.00
C41: Итого | E41: =E34 -> 44.72 | F41: =SUM(F36:F40) -> 51.50
A42: 6 - ой день (суббота)
A43: 1 | B43: 45 | C43: Салат из свежей капусты с маслом растительным | D43: 60 | F43: 8.00
A44: 2 | B44: 239/348 | C44: Котлеты рыбные (минтай) с соусом | D44: 60/30 | F44: 29.00
A45: 3 | B45: 335 | C45: Пюре картофельное с маслом сливочным | D45: 150/5 | F45: 5.00
A46: 4 | B46: 431 | C46: Чай черный с сахаром, с лимоном | D46: 185/7/7 | F46: 1.50
A47: 5 | C47: Хлеб белый | D47: 30 | F47: 1.00
C48: Хлеб сельский | D48: 20
C49: Итого | E49: =E41 -> 44.72 | F49: =SUM(F43:F47) -> 44.50
A50: Вторая неделя 1-ый день (понедельник)
A51: 1 | C51: Овощи свежие в ассортименте (огурцы,помидоры ) | D51: 60 | F51: 6.00
A52: 2 | B52: 254/348 | C52: Сосиски отварные (соус ) | D52: 60/30 | F52: 35.00
A53: 3 | B53: 202 | C53: Макаронные изделия отварные с маслом сливочным | D53: 150/5 | F53: 11.00
A54: 4 | B54: 430 | C54: Чай черный с сахаром | D54: 185/7 | F54: 3.00
A55: 5 | C55: Хлеб пшеничный высшего сорта | D55: 30 | F55: 1.50
A56: 6 | C56: Хлеб сельский | D56: 20 | F56: 1.00
C57: Итого | E57: =E49 -> 44.72 | F57: =SUM(F51:F56) -> 57.50
A58: 2 -ой день (вторник)
A59: 1 | C59: Фрукты (в ассортименте) | D59: 120 | F59: 15.00
A60: 3 | B60: 258 | C60: Жаркое по-домашнему из птицы (грудка куриная) | D60: 40/150 | F60: 29.00
A61: 4 | B61: 402 | C61: Компот из сухофруктов с витамином С | D61: 200 | F61: 9.00
A62: 5 | C62: Хлеб пшеничный высшего сорта | D62: 30 | F62: 1.50
A63: 6 | C63: Хлеб сельский | D63: 20 | F63: 1.00
C64: Итого | E64: =E57 -> 44.72 | F64: =SUM(F59:F63) -> 55.50
A65: 3 - ий день (среда)
A66: 1 | C66: Овощи натуральные свежие в ассортименте | D66: 60 | F66: 6.00
A67: 2 | B67: 283/348 | C67: Тефтели из говядины в соусе | D67: 60/30 | F67: 37.00
A68: 3 | B68: 181 | C68: Каша гречневая рассыпчатая с маслом сливочным | D68: 150/5 | F68: 7.00
A69: 4 | B69: 430 | C69: Чай черный с сахаром | D69: 185/7 | F69: 5.00
A70: 5 | C70: Хлеб пшеничный высшего сорта | D70: 30 | F70: 1.50
A71: 6 | C71: Хлеб сельский | D71: 20 | F71: 1.00
C72: Итого | E72: =E64 -> 44.72 | F72: =SUM(F66:F71) -> 57.50
A73: 4 - ый день (четверг)
A74: 1 | C74: Фрукты (в ассортименте) | D74: 100 | F74: 17.00
A75: 4 | B75: 311 | C75: Плов из птицы (грудки куриные) | D75: 40/150 | F75: 15.00
A76: 5 | B76: 402 | C76: Компот из сухофруктов с витамином С | D76: 200 | F76: 3.00
A77: 6 | C77: Хлеб пшеничный высшего сорта | D77: 30 | F77: 1.50
A78: 7 | C78: Хлеб сельский | D78: 40 | F78: 1.00
C79: Итого | E79: =E72 -> 44.72 | F79: =SUM(F74:F78) -> 37.50
A80: 5 - ый день (пятница)
A81: 1 | B81: 34 | C81: Салат из свеклы вареной с зеленым горошком | D81: 60 | F81: 10.00
A82: 2 | B82: 272/348 | C82: Котлеты из говядины с соусом | D82: 60/30 | F82: 25.00
A83: 3 | B83: 181 | C83: Каша пшеничная рассыпчатая с маслом сливочным | D83: 150/5 | F83: 9.00
A84: 4 | B84: 432 | C84: Кофейный напиток с молоком | D84: 200 | F84: 9.00
A85: 5 | C85: Хлеб пшеничный высшего сорта | D85: 30 | F85: 1.50
A86: 6 | C86: Хлеб сельский | D86: 20 | F86: 1.00
C87: Итого | E87: =E79 -> 44.72 | F87: =SUM(F81:F86) -> 55.50
A88: 6 - ой день (суббота)
A89: 1 | B89: 45 | C89: Салат из свежей капусты с маслом растительным | D89: 60 | F89: 6.00
A90: 2 | B90: 391 | C90: Пельмени мясные отварные с маслом сливочным | D90: 170/5 | F90: 23.00
A91: 3 | B91: 430 | C91: Чай с сахаром | D91: 185/7 | F91: 5.00
A92: 4 | C92: Хлеб пшеничный высшего сорта | D92: 30 | F92: 1.50
A93: 5 | C93: Хлеб сельский | D93: 20 | F93: 1.00
C94: Итого | E94: =E87 -> 44.72 | F94: =SUM(F89:F93) -> 36.50
C95: Итого | E95: =E94+E87+E79+E72+E64+E57+E49+E41+E34+E27+E20+E12 -> 536.64 | F95: =F12+F19+F26+F33+F40+F47+F57+F65+F73+F81+F88+#REF! -> 
F97: =F95/12 -> 
B100: Индивидуальный предприниматель | D100: Махмутов Х.Х.
